[Event "Live Chess"]
[Site "Chess.com"]
[Date "2023.05.20"]
[Round "-"]
[White "MarkLim1"]
[Black "YF22Raptor"]
[Result "1-0"]
[WhiteElo "1670"]
[BlackElo "1015"]
[TimeControl "300"]
[EndTime "14:40:06 PDT"]
[Termination "MarkLim1 won by checkmate"]

1. d4 {[%clk 0:04:59.3]} 1... c6 {[%clk 0:04:59.2]} 2. Nf3 {[%clk 0:04:58.3]}
2... d5 {[%clk 0:04:58.8]} 3. Bf4 {[%clk 0:04:57.6]} 3... Bg4 {[%clk 0:04:58.3]}
4. e3 {[%clk 0:04:56.5]} 4... Bxf3 {[%clk 0:04:57.4]} 5. Qxf3 {[%clk 0:04:55.5]}
5... e6 {[%clk 0:04:57.2]} 6. c4 {[%clk 0:04:54.1]} 6... c5 {[%clk 0:04:56.8]}
7. cxd5 {[%clk 0:04:51.7]} 7... exd5 {[%clk 0:04:53.7]} 8. Bb5+ {[%clk
0:04:50.6]} 8... Nc6 {[%clk 0:04:51.8]} 9. dxc5 {[%clk 0:04:49.5]} 9... Bxc5
{[%clk 0:04:49.5]} 10. O-O {[%clk 0:04:47.5]} 10... a6 {[%clk 0:04:47.7]} 11.
Ba4 {[%clk 0:04:43.3]} 11... Ne7 {[%clk 0:04:46.9]} 12. Rd1 {[%clk 0:04:42.2]}
12... O-O {[%clk 0:04:45.3]} 13. Nc3 {[%clk 0:04:41.1]} 13... b5 {[%clk
0:04:42.4]} 14. Bc2 {[%clk 0:04:39.8]} 14... Nb4 {[%clk 0:04:24.1]} 15. Bb1
{[%clk 0:04:35.7]} 15... Nbc6 {[%clk 0:04:09.2]} 16. Nxd5 {[%clk 0:04:32]} 16...
Qd7 {[%clk 0:03:57.4]} 17. Nf6+ {[%clk 0:04:25.4]} 17... gxf6 {[%clk 0:03:55.8]}
18. Rxd7 {[%clk 0:04:24.2]} 18... Rfd8 {[%clk 0:03:54.6]} 19. Rxd8+ {[%clk
0:04:22.7]} 19... Rxd8 {[%clk 0:03:53.3]} 20. Be4 {[%clk 0:04:16.9]} 20... Ne5
{[%clk 0:03:46]} 21. Bxe5 {[%clk 0:04:15.6]} 21... fxe5 {[%clk 0:03:44.6]} 22.
h4 {[%clk 0:04:14.4]} 22... f6 {[%clk 0:03:39.8]} 23. Rd1 {[%clk 0:04:10.8]}
23... Rf8 {[%clk 0:03:27.9]} 24. Qh5 {[%clk 0:04:07.1]} 24... Rf7 {[%clk
0:03:23.5]} 25. Rd8+ {[%clk 0:04:05.7]} 25... Kg7 {[%clk 0:03:21.1]} 26. Qg4+
{[%clk 0:03:59.8]} 26... Ng6 {[%clk 0:03:18.5]} 27. h5 {[%clk 0:03:58.6]} 27...
Bb6 {[%clk 0:03:12.7]} 28. hxg6 {[%clk 0:03:52.8]} 28... hxg6 {[%clk 0:03:09.4]}
29. Qxg6# {[%clk 0:03:50.8]} 1-0

[Event "Live Chess"]
[Site "Chess.com"]
[Date "2023.05.20"]
[Round "-"]
[White "luckywookie"]
[Black "weibs440"]
[Result "1-0"]
[WhiteElo "755"]
[BlackElo "931"]
[TimeControl "300"]
[EndTime "14:40:12 PDT"]
[Termination "luckywookie won by checkmate"]

1. e4 {[%clk 0:04:58.7]} 1... d6 {[%clk 0:04:58.8]} 2. d4 {[%clk 0:04:55.4]}
2... Nf6 {[%clk 0:04:57.6]} 3. Nc3 {[%clk 0:04:53.4]} 3... Nbd7 {[%clk 0:04:56]}
4. Nf3 {[%clk 0:04:51.9]} 4... e5 {[%clk 0:04:55.1]} 5. d5 {[%clk 0:04:50]} 5...
Be7 {[%clk 0:04:52.6]} 6. Bb5 {[%clk 0:04:44.1]} 6... a6 {[%clk 0:04:49.5]} 7.
Bxd7+ {[%clk 0:04:42.4]} 7... Bxd7 {[%clk 0:04:44.2]} 8. O-O {[%clk 0:04:39.5]}
8... c6 {[%clk 0:04:38.2]} 9. h3 {[%clk 0:04:37.3]} 9... Qc7 {[%clk 0:04:35.7]}
10. Be3 {[%clk 0:04:25.8]} 10... cxd5 {[%clk 0:04:30.9]} 11. Nxd5 {[%clk
0:04:22.9]} 11... Nxd5 {[%clk 0:04:28.7]} 12. Qxd5 {[%clk 0:04:15.7]} 12... Be6
{[%clk 0:04:08.2]} 13. Qd2 {[%clk 0:03:53]} 13... O-O {[%clk 0:04:06.3]} 14. h4
{[%clk 0:03:46.7]} 14... Rac8 {[%clk 0:03:54.1]} 15. Rac1 {[%clk 0:03:41.7]}
15... Bg4 {[%clk 0:03:16.6]} 16. Ng5 {[%clk 0:03:25.5]} 16... h6 {[%clk
0:03:06.7]} 17. Nh3 {[%clk 0:03:21.4]} 17... Bxh3 {[%clk 0:02:58]} 18. gxh3
{[%clk 0:03:19.7]} 18... Kh7 {[%clk 0:02:47.4]} 19. Kh2 {[%clk 0:02:59.5]} 19...
Bxh4 {[%clk 0:02:40.4]} 20. Rg1 {[%clk 0:02:56.8]} 20... Rg8 {[%clk 0:02:27]}
21. Rg4 {[%clk 0:02:49.1]} 21... Qe7 {[%clk 0:02:16]} 22. Rcg1 {[%clk 0:02:41]}
22... Rcd8 {[%clk 0:01:44.9]} 23. f3 {[%clk 0:02:33.7]} 23... Rd7 {[%clk
0:01:36.1]} 24. Bf2 {[%clk 0:02:32.2]} 24... Bxf2 {[%clk 0:01:33]} 25. Qxf2
{[%clk 0:02:30.7]} 25... f6 {[%clk 0:01:19.6]} 26. Rg6 {[%clk 0:02:13.3]} 26...
Qf7 {[%clk 0:01:14.7]} 27. Qg3 {[%clk 0:01:58.9]} 27... b5 {[%clk 0:01:04]} 28.
b3 {[%clk 0:01:35.3]} 28... a5 {[%clk 0:01:01.2]} 29. h4 {[%clk 0:01:27.8]}
29... b4 {[%clk 0:00:59.3]} 30. h5 {[%clk 0:01:26.4]} 30... Qe7 {[%clk
0:00:48.9]} 31. Rxh6+ {[%clk 0:01:06.8]} 31... Kxh6 {[%clk 0:00:43.1]} 32. Qg6#
{[%clk 0:01:04.9]} 1-0

[Event "Live Chess"]
[Site "Chess.com"]
[Date "2023.05.20"]
[Round "-"]
[White "JanMur7"]
[Black "Greenbecker"]
[Result "1-0"]
[WhiteElo "1990"]
[BlackElo "1634"]
[TimeControl "300"]
[EndTime "14:40:18 PDT"]
[Termination "JanMur7 won by resignation"]

1. e4 {[%clk 0:04:58.3]} 1... e6 {[%clk 0:04:58.6]} 2. d4 {[%clk 0:04:57.1]}
2... d5 {[%clk 0:04:58]} 3. exd5 {[%clk 0:04:57]} 3... exd5 {[%clk 0:04:57.1]}
4. Bd3 {[%clk 0:04:56.4]} 4... Nf6 {[%clk 0:04:56.7]} 5. Ne2 {[%clk 0:04:55.7]}
5... Bd6 {[%clk 0:04:56.4]} 6. O-O {[%clk 0:04:54.9]} 6... O-O {[%clk 0:04:56]}
7. Bf4 {[%clk 0:04:54]} 7... Re8 {[%clk 0:04:54]} 8. c3 {[%clk 0:04:48.2]} 8...
c6 {[%clk 0:04:53.4]} 9. Bxd6 {[%clk 0:04:46.5]} 9... Qxd6 {[%clk 0:04:52.6]}
10. Ng3 {[%clk 0:04:46]} 10... Bg4 {[%clk 0:04:48.5]} 11. Qc2 {[%clk 0:04:44.6]}
11... h6 {[%clk 0:04:46.5]} 12. h3 {[%clk 0:04:43.5]} 12... Be6 {[%clk
0:04:43.4]} 13. Nd2 {[%clk 0:04:41.5]} 13... Nbd7 {[%clk 0:04:42.5]} 14. Nf3
{[%clk 0:04:40.3]} 14... Re7 {[%clk 0:04:39.7]} 15. Rfe1 {[%clk 0:04:38.1]}
15... Rae8 {[%clk 0:04:38.6]} 16. Ne5 {[%clk 0:04:36.6]} 16... Qc7 {[%clk
0:04:33.2]} 17. Nxd7 {[%clk 0:04:31.9]} 17... Qxd7 {[%clk 0:04:29.4]} 18. Re2
{[%clk 0:04:26.9]} 18... Qd6 {[%clk 0:04:13.6]} 19. Rae1 {[%clk 0:04:23.3]}
19... Bd7 {[%clk 0:04:11]} 20. Rxe7 {[%clk 0:04:20]} 20... Rxe7 {[%clk
0:04:10.2]} 21. Rxe7 {[%clk 0:04:19.9]} 21... Qxe7 {[%clk 0:04:09.1]} 22. Qe2
{[%clk 0:04:17.7]} 22... Qxe2 {[%clk 0:04:07.3]} 23. Bxe2 {[%clk 0:04:16.8]}
23... Kf8 {[%clk 0:04:01]} 24. Bd3 {[%clk 0:04:14.2]} 24... Ke7 {[%clk 0:03:58]}
25. Nf5+ {[%clk 0:04:12.5]} 25... Bxf5 {[%clk 0:03:51.9]} 26. Bxf5 {[%clk
0:04:12.4]} 26... Kd6 {[%clk 0:03:49.7]} 27. f3 {[%clk 0:04:08.7]} 27... b6
{[%clk 0:03:48]} 28. Kf2 {[%clk 0:04:07.7]} 28... g6 {[%clk 0:03:46.5]} 29. Bd3
{[%clk 0:04:05.7]} 29... Nd7 {[%clk 0:03:42.8]} 30. g3 {[%clk 0:04:03.2]} 30...
g5 {[%clk 0:03:40.6]} 31. f4 {[%clk 0:04:01.3]} 31... f6 {[%clk 0:03:39]} 32.
Bf5 {[%clk 0:03:57]} 32... c5 {[%clk 0:03:32.7]} 33. Kf3 {[%clk 0:03:47.9]}
33... h5 {[%clk 0:03:15.8]} 34. h4 {[%clk 0:02:49.1]} 34... g4+ {[%clk
0:02:52.8]} 35. Ke3 {[%clk 0:02:47.1]} 35... Nf8 {[%clk 0:02:51.7]} 36. Kd3
{[%clk 0:02:36.6]} 36... c4+ {[%clk 0:02:40.6]} 37. Kc2 {[%clk 0:02:34.6]} 37...
b5 {[%clk 0:02:38.7]} 38. a4 {[%clk 0:02:27.4]} 38... Kc6 {[%clk 0:02:31.3]} 39.
axb5+ {[%clk 0:02:21.7]} 39... Kxb5 {[%clk 0:02:25.6]} 40. Kb1 {[%clk
0:02:20.5]} 40... a5 {[%clk 0:02:20.5]} 41. Ka2 {[%clk 0:02:17.3]} 41... Ka4
{[%clk 0:02:12.4]} 42. Bc8 {[%clk 0:02:14]} 42... Kb5 {[%clk 0:02:02]} 43. Bb7
{[%clk 0:02:12]} 43... Nd7 {[%clk 0:01:50.4]} 44. Bxd5 {[%clk 0:02:09.5]} 44...
Nb6 {[%clk 0:01:47.4]} 45. Bf7 {[%clk 0:02:01.8]} 45... Kc6 {[%clk 0:01:45]} 46.
Bxh5 {[%clk 0:01:59.6]} 46... Nd5 {[%clk 0:01:43.5]} 47. Bxg4 {[%clk 0:01:56.8]}
47... Ne3 {[%clk 0:01:42.6]} 48. Bf3+ {[%clk 0:01:56.3]} 48... Kd6 {[%clk
0:01:39.7]} 49. h5 {[%clk 0:01:55.7]} 49... Nf5 {[%clk 0:01:38.2]} 50. g4 {[%clk
0:01:53.5]} 1-0

[Event "Live Chess"]
[Site "Chess.com"]
[Date "2023.05.20"]
[Round "-"]
[White "Long1968"]
[Black "Pablo_dmp"]
[Result "0-1"]
[WhiteElo "1172"]
[BlackElo "1877"]
[TimeControl "300"]
[EndTime "14:40:22 PDT"]
[Termination "Pablo_dmp won on time"]

1. e4 {[%clk 0:04:54.2]} 1... c6 {[%clk 0:04:58.7]} 2. d4 {[%clk 0:04:52]} 2...
d5 {[%clk 0:04:57.8]} 3. exd5 {[%clk 0:04:49.7]} 3... cxd5 {[%clk 0:04:57.1]} 4.
Nf3 {[%clk 0:04:46.5]} 4... Nf6 {[%clk 0:04:55.3]} 5. Bg5 {[%clk 0:04:41.8]}
5... Ne4 {[%clk 0:04:52.6]} 6. h4 {[%clk 0:04:36.7]} 6... Nc6 {[%clk 0:04:49.4]}
7. Nbd2 {[%clk 0:04:29.3]} 7... h6 {[%clk 0:04:44.4]} 8. Be3 {[%clk 0:04:23.8]}
8... Nf6 {[%clk 0:04:42.4]} 9. g3 {[%clk 0:04:15.1]} 9... Bg4 {[%clk 0:04:35.3]}
10. Bh3 {[%clk 0:04:05.9]} 10... Qd7 {[%clk 0:04:31.6]} 11. Bxg4 {[%clk
0:04:01.6]} 11... Nxg4 {[%clk 0:04:31.5]} 12. O-O {[%clk 0:03:41.8]} 12... Nxe3
{[%clk 0:04:28.2]} 13. fxe3 {[%clk 0:03:37.2]} 13... Qc7 {[%clk 0:04:28.1]} 14.
Kg2 {[%clk 0:03:28.7]} 14... e6 {[%clk 0:04:24.6]} 15. c3 {[%clk 0:03:19]} 15...
Bd6 {[%clk 0:04:23.1]} 16. Qe1 {[%clk 0:03:12.7]} 16... Ne7 {[%clk 0:04:19.4]}
17. g4 {[%clk 0:02:51.9]} 17... Ng6 {[%clk 0:04:17]} 18. Qe2 {[%clk 0:02:19]}
18... Bg3 {[%clk 0:04:10.2]} 19. h5 {[%clk 0:01:45.2]} 19... Nh4+ {[%clk
0:04:05.2]} 20. Nxh4 {[%clk 0:01:41.5]} 20... Bxh4 {[%clk 0:04:05.1]} 21. Qf3
{[%clk 0:01:36.7]} 21... O-O {[%clk 0:04:02.9]} 22. e4 {[%clk 0:01:29.2]} 22...
Rad8 {[%clk 0:03:56.4]} 23. e5 {[%clk 0:01:21.3]} 23... Bg5 {[%clk 0:03:52.3]}
24. Nb3 {[%clk 0:01:14.6]} 24... a5 {[%clk 0:03:50.3]} 25. Rad1 {[%clk
0:00:59.7]} 25... a4 {[%clk 0:03:49.4]} 26. Nd2 {[%clk 0:00:55.8]} 26... b5
{[%clk 0:03:46.9]} 27. Rf2 {[%clk 0:00:43.2]} 27... Rb8 {[%clk 0:03:38.2]} 28.
b3 {[%clk 0:00:30.7]} 28... Qe7 {[%clk 0:03:31.1]} 29. b4 {[%clk 0:00:24.3]}
29... Rbc8 {[%clk 0:03:28]} 30. Nf1 {[%clk 0:00:16.8]} 30... Qc7 {[%clk
0:03:24.6]} 31. Rd3 {[%clk 0:00:12.4]} 31... Qc4 {[%clk 0:03:22.2]} 32. Rc2
{[%clk 0:00:06.3]} 32... Rc7 {[%clk 0:03:09.9]} 0-1

[Event "Live Chess"]
[Site "Chess.com"]
[Date "2023.05.20"]
[Round "-"]
[White "Doge_Dandolo"]
[Black "VicLemon"]
[Result "1-0"]
[WhiteElo "2040"]
[BlackElo "1346"]
[TimeControl "300"]
[EndTime "14:40:30 PDT"]
[Termination "Doge_Dandolo won by resignation"]

1. Nf3 {[%clk 0:04:59.4]} 1... d5 {[%clk 0:04:56.8]} 2. c4 {[%clk 0:04:58.6]}
2... Nf6 {[%clk 0:04:51]} 3. cxd5 {[%clk 0:04:57.2]} 3... Nxd5 {[%clk 0:04:44]}
4. e4 {[%clk 0:04:55.8]} 4... Nf4 {[%clk 0:04:40.6]} 5. d4 {[%clk 0:04:53.4]}
5... e5 {[%clk 0:04:31.5]} 6. Nxe5 {[%clk 0:04:48.1]} 6... Bb4+ {[%clk
0:04:25.8]} 7. Nc3 {[%clk 0:04:44.5]} 7... Ne6 {[%clk 0:04:10.6]} 8. d5 {[%clk
0:04:39.4]} 8... Ng5 {[%clk 0:03:49.2]} 9. Qa4+ {[%clk 0:04:35.7]} 9... Nc6
{[%clk 0:03:35.9]} 10. dxc6 {[%clk 0:04:33.4]} 10... O-O {[%clk 0:03:11.1]} 11.
Qxb4 {[%clk 0:04:30.8]} 1-0

[Event "Live Chess"]
[Site "Chess.com"]
[Date "2023.05.20"]
[Round "-"]
[White "omisoc"]
[Black "Inglaterra"]
[Result "0-1"]
[WhiteElo "2125"]
[BlackElo "2043"]
[TimeControl "300"]
[EndTime "14:40:35 PDT"]
[Termination "Inglaterra won by resignation"]

1. Nf3 {[%clk 0:04:55]} 1... Nf6 {[%clk 0:04:56.9]} 2. b3 {[%clk 0:04:52.2]}
2... d5 {[%clk 0:04:56.1]} 3. e3 {[%clk 0:04:49.8]} 3... e6 {[%clk 0:04:55.5]}
4. c4 {[%clk 0:04:48.2]} 4... Be7 {[%clk 0:04:54.7]} 5. Bb2 {[%clk 0:04:47.3]}
5... O-O {[%clk 0:04:53]} 6. Be2 {[%clk 0:04:46.1]} 6... c5 {[%clk 0:04:52.3]}
7. O-O {[%clk 0:04:44.7]} 7... Nc6 {[%clk 0:04:51.9]} 8. cxd5 {[%clk 0:04:39.7]}
8... Nxd5 {[%clk 0:04:49.8]} 9. Nc3 {[%clk 0:04:37.8]} 9... Bf6 {[%clk
0:04:48.1]} 10. Qc1 {[%clk 0:04:30.5]} 10... b6 {[%clk 0:04:27.2]} 11. Rd1
{[%clk 0:04:19.8]} 11... Bb7 {[%clk 0:04:23.5]} 12. Nxd5 {[%clk 0:04:17.5]}
12... Bxb2 {[%clk 0:04:21.2]} 13. Qxb2 {[%clk 0:04:14.9]} 13... Qxd5 {[%clk
0:04:17.5]} 14. Bf1 {[%clk 0:04:06.2]} 14... Rad8 {[%clk 0:04:10.3]} 15. d4
{[%clk 0:04:01.8]} 15... cxd4 {[%clk 0:03:53.1]} 16. Nxd4 {[%clk 0:03:58.1]}
16... Ne5 {[%clk 0:03:26.4]} 17. f3 {[%clk 0:03:33.6]} 17... Ng6 {[%clk
0:02:52.4]} 18. Rac1 {[%clk 0:03:17]} 18... e5 {[%clk 0:02:42]} 19. e4 {[%clk
0:03:02.9]} 19... Qd7 {[%clk 0:02:28.1]} 0-1

[Event "Live Chess"]
[Site "Chess.com"]
[Date "2023.05.20"]
[Round "-"]
[White "Conradical12"]
[Black "xx_blindpuffin_xx"]
[Result "0-1"]
[WhiteElo "1587"]
[BlackElo "2194"]
[TimeControl "300"]
[EndTime "14:40:43 PDT"]
[Termination "xx_blindpuffin_xx won by resignation"]

1. e4 {[%clk 0:04:58.6]} 1... b6 {[%clk 0:04:57.8]} 2. Nc3 {[%clk 0:04:56.7]}
2... Bb7 {[%clk 0:04:57.3]} 3. d4 {[%clk 0:04:54.5]} 3... e6 {[%clk 0:04:56.4]}
4. Be3 {[%clk 0:04:53.9]} 4... Bb4 {[%clk 0:04:54.6]} 5. Ne2 {[%clk 0:04:51.8]}
5... Nf6 {[%clk 0:04:53.3]} 6. f3 {[%clk 0:04:51]} 6... d5 {[%clk 0:04:51.9]} 7.
Qd2 {[%clk 0:04:49.9]} 7... dxe4 {[%clk 0:04:49.9]} 8. f4 {[%clk 0:04:44.8]}
8... Nbd7 {[%clk 0:04:40.9]} 9. O-O-O {[%clk 0:04:43.4]} 9... O-O {[%clk
0:04:36.1]} 10. h3 {[%clk 0:04:38.3]} 10... Qe7 {[%clk 0:04:33.9]} 11. g4 {[%clk
0:04:36.5]} 11... Rfd8 {[%clk 0:04:30.6]} 12. Ng3 {[%clk 0:04:05.6]} 12... Nd5
{[%clk 0:04:23.7]} 13. Ngxe4 {[%clk 0:04:01.3]} 13... Nxc3 {[%clk 0:04:21.9]}
14. bxc3 {[%clk 0:03:52.7]} 14... Ba3+ {[%clk 0:04:20.7]} 15. Kb1 {[%clk
0:03:50.5]} 15... Bxe4 {[%clk 0:04:20.6]} 16. Rg1 {[%clk 0:03:47.1]} 16... Qd6
{[%clk 0:04:18.2]} 17. Bc4 {[%clk 0:03:45.3]} 17... a5 {[%clk 0:04:12]} 18. f5
{[%clk 0:03:42.2]} 18... a4 {[%clk 0:04:10]} 19. Bd3 {[%clk 0:03:38.2]} 19...
Qd5 {[%clk 0:04:05.2]} 20. c4 {[%clk 0:03:35.3]} 20... Qb7 {[%clk 0:04:01.6]}
21. d5 {[%clk 0:03:31.9]} 21... Bxd3 {[%clk 0:03:59.3]} 22. Qxd3 {[%clk
0:03:30.2]} 22... exd5 {[%clk 0:03:58.7]} 23. cxd5 {[%clk 0:03:28]} 23... Bc5
{[%clk 0:03:45]} 24. Ka1 {[%clk 0:03:19.2]} 24... Bxe3 {[%clk 0:03:39.4]} 25.
Qxe3 {[%clk 0:03:17.5]} 25... Nc5 {[%clk 0:03:35.7]} 26. c4 {[%clk 0:03:11.5]}
26... Re8 {[%clk 0:03:32.2]} 27. Qd4 {[%clk 0:03:00.2]} 27... Qa6 {[%clk
0:03:26.1]} 28. Rc1 {[%clk 0:02:46.8]} 28... Nb3+ {[%clk 0:03:17.3]} 29. axb3
{[%clk 0:02:44.8]} 29... axb3+ {[%clk 0:03:17.2]} 30. Kb2 {[%clk 0:02:43.7]}
30... Qa2+ {[%clk 0:03:13.2]} 31. Kc3 {[%clk 0:02:42.8]} 31... b2 {[%clk
0:03:11.2]} 32. Rb1 {[%clk 0:02:41.7]} 32... Ra3+ {[%clk 0:03:08.5]} 33. Kd2
{[%clk 0:02:35.8]} 33... Rxh3 {[%clk 0:02:57.7]} 34. Rxb2 {[%clk 0:02:26.4]}
34... Rh2+ {[%clk 0:02:56.6]} 35. Kc1 {[%clk 0:02:23.3]} 35... Qa1+ {[%clk
0:02:55.8]} 36. Rb1 {[%clk 0:02:18.5]} 36... Qxd4 {[%clk 0:02:54.8]} 0-1

[Event "Live Chess"]
[Site "Chess.com"]
[Date "2023.05.20"]
[Round "-"]
[White "wot-not"]
[Black "rideuv21"]
[Result "1-0"]
[WhiteElo "1524"]
[BlackElo "1790"]
[TimeControl "300"]
[EndTime "14:40:52 PDT"]
[Termination "wot-not won by resignation"]

1. e4 {[%clk 0:04:55.9]} 1... c5 {[%clk 0:04:59.9]} 2. f4 {[%clk 0:04:54.2]}
2... d5 {[%clk 0:04:56.9]} 3. e5 {[%clk 0:04:52.7]} 3... Nc6 {[%clk 0:04:54.2]}
4. Nf3 {[%clk 0:04:52.3]} 4... Bg4 {[%clk 0:04:52.1]} 5. Be2 {[%clk 0:04:49.1]}
5... g6 {[%clk 0:04:48.2]} 6. O-O {[%clk 0:04:48.1]} 6... Bg7 {[%clk 0:04:46.8]}
7. h3 {[%clk 0:04:47.6]} 7... Bxf3 {[%clk 0:04:45.7]} 8. Bxf3 {[%clk 0:04:46.7]}
8... e6 {[%clk 0:04:45.6]} 9. c4 {[%clk 0:04:45.3]} 9... Nge7 {[%clk 0:04:43.6]}
10. Nc3 {[%clk 0:04:43.2]} 10... O-O {[%clk 0:04:41.3]} 11. cxd5 {[%clk
0:04:41.4]} 11... exd5 {[%clk 0:04:39.6]} 12. Ne2 {[%clk 0:04:16.1]} 12... Nf5
{[%clk 0:04:36.8]} 13. d3 {[%clk 0:04:10]} 13... Nfd4 {[%clk 0:04:34.7]} 14. Be3
{[%clk 0:04:03.4]} 14... Nxf3+ {[%clk 0:04:32.3]} 15. Rxf3 {[%clk 0:04:02.6]}
15... f6 {[%clk 0:04:29.6]} 16. Bxc5 {[%clk 0:04:01.5]} 16... Re8 {[%clk
0:04:28.1]} 17. d4 {[%clk 0:03:46.6]} 17... b6 {[%clk 0:04:21.1]} 18. Bd6 {[%clk
0:03:41.5]} 18... fxe5 {[%clk 0:04:18.8]} 19. fxe5 {[%clk 0:03:39.9]} 19... Qg5
{[%clk 0:04:11.1]} 20. Qb3 {[%clk 0:03:28.9]} 20... Ne7 {[%clk 0:04:05.5]} 21.
Bxe7 {[%clk 0:03:23.7]} 21... Qxe7 {[%clk 0:04:05.4]} 22. Qxd5+ {[%clk
0:03:22.3]} 22... Kh8 {[%clk 0:04:04.7]} 23. Raf1 {[%clk 0:03:16.2]} 23... Rad8
{[%clk 0:04:02.1]} 24. Qb3 {[%clk 0:03:04.9]} 24... Qh4 {[%clk 0:03:52.5]} 25.
Qa3 {[%clk 0:02:33]} 25... Rxd4 {[%clk 0:03:38.3]} 26. Rf8+ {[%clk 0:02:08.6]}
26... Bxf8 {[%clk 0:03:33.2]} 27. Rxf8+ {[%clk 0:02:07.3]} 27... Kg7 {[%clk
0:03:31.8]} 28. Rxe8 {[%clk 0:02:00.7]} 28... Qe1+ {[%clk 0:03:27.6]} 29. Kh2
{[%clk 0:01:56.1]} 29... Qxe2 {[%clk 0:03:27.5]} 30. Qe7+ {[%clk 0:01:52.7]}
30... Kh6 {[%clk 0:03:25.5]} 31. Rh8 {[%clk 0:01:17.4]} 1-0

[Event "Live Chess"]
[Site "Chess.com"]
[Date "2023.05.20"]
[Round "-"]
[White "grillage"]
[Black "KeithArkell"]
[Result "0-1"]
[WhiteElo "1843"]
[BlackElo "2619"]
[TimeControl "300"]
[EndTime "14:40:53 PDT"]
[Termination "KeithArkell won by resignation"]

1. d4 {[%clk 0:04:59.1]} 1... e6 {[%clk 0:04:58.9]} 2. Nf3 {[%clk 0:04:57.5]}
2... Nf6 {[%clk 0:04:57.9]} 3. c4 {[%clk 0:04:55]} 3... Bb4+ {[%clk 0:04:56.1]}
4. Nc3 {[%clk 0:04:52.2]} 4... c5 {[%clk 0:04:54.9]} 5. Qb3 {[%clk 0:04:37.2]}
5... Nc6 {[%clk 0:04:52.5]} 6. e3 {[%clk 0:04:28.9]} 6... Ne4 {[%clk 0:04:46.7]}
7. Bd2 {[%clk 0:04:25]} 7... Nxd2 {[%clk 0:04:45.9]} 8. Nxd2 {[%clk 0:04:22.4]}
8... cxd4 {[%clk 0:04:44.8]} 9. exd4 {[%clk 0:04:19.5]} 9... Nxd4 {[%clk
0:04:43.3]} 10. Bd3 {[%clk 0:04:14.5]} 10... Nxb3 {[%clk 0:04:41.6]} 11. axb3
{[%clk 0:03:53.7]} 11... Bxc3 {[%clk 0:04:39.3]} 0-1